bitfinex/quotes_SOLUSD_20251128
["timestamp","ask_amount","ask_price","bid_price","bid_amount"]
[1764328565486,9.06525412,140.27,140.18,0.7]
[1764328565779,12.46741569,140.26,140.2,9.06525412]
[1764328565983,3.26,140.26,140.23,9.06525412]
[1764328566156,9.34957726,140.29,140.18,0.7]
[1764328566468,9.34957726,140.29,140.22,9.06525412]
[1764328566469,9.06525412,140.28,140.22,9.06525412]
[1764328566652,9.34957726,140.29,140.23,9.06525412]
[1764328566852,0.28432314,140.29,140.24,9.06525412]
[1764328567176,16.308864,140.3,140.24,7.1304893]
[1764328567392,9.56525412,140.36,140.29,9.06525412]
[1764328567685,3.26,140.36,140.34,9.06525412]
[1764328567886,0.5,140.45,140.35,9.06525412]
[1764328568053,3.26,140.44,140.3,9.06525412]
[1764328568381,3.26,140.44,140.38,9.06525412]
[1764328568561,9.89536543,140.45,140.33,16.308864]
[1764328568765,9.89536543,140.41,140.34,0.7]
[1764328569072,9.89536543,140.38,140.27,16.308864]
[1764328569276,9.89536543,140.4,140.29,23.43645424]
[1764328569452,10.38160526,140.42,140.32,9.89536543]
[1764328569453,9.89536543,140.38,140.32,9.89536543]
[1764328569658,0.5,140.41,140.33,9.89536543]
[1764328569659,9.89536543,140.39,140.33,9.89536543]
[1764328569972,9.89536543,140.36,140.3,0.7]
[1764328570279,16.308864,140.39,140.3,0.7]
[1764328570280,9.89536543,140.37,140.31,9.89536543]
[1764328570480,16.808864,140.39,140.3,0.7]
[1764328570481,0.28432314,140.39,140.3,0.7]
[1764328570681,0.28432314,140.41,140.34,9.89536543]
[1764328570987,20.27697069,140.42,140.36,9.89536543]
[1764328571152,3.26,140.42,140.35,9.89536543]
[1764328571362,3.26,140.42,140.36,9.89536543]
[1764328571363,13.15536543,140.42,140.36,9.89536543]
[1764328571664,9.89536543,140.38,140.31,10.58536543]
[1764328571877,9.89536543,140.34,140.27,0.69]
[1764328572077,9.09426806,140.34,140.25,9.89536543]
[1764328572290,16.308864,140.35,140.28,9.89536543]
[1764328572493,9.89536543,140.35,140.3,9.89536543]
[1764328572672,9.89536543,140.35,140.29,9.89536543]
[1764328572866,0.28432314,140.36,140.3,9.89536543]
[1764328573072,9.89536543,140.35,140.3,9.89536543]
[1764328573274,5.0,140.32,140.3,9.89536543]
[1764328573472,5.0,140.32,140.3,0.69]
[1764328573672,5.0,140.32,140.3,17.0227805]
[1764328573891,5.0,140.32,140.31,10.58536543]
[1764328574166,5.0,140.32,140.27,0.69]
[1764328574371,5.0,140.32,140.29,9.89536543]
[1764328574779,5.0,140.32,140.29,10.58536543]
[1764328574978,5.0,140.32,140.3,9.89536543]
[1764328575295,5.0,140.32,140.3,0.69]
[1764328575486,5.0,140.32,140.25,35.64968344]
[1764328575487,5.0,140.32,140.31,0.69]
[1764328575877,5.0,140.32,140.28,7.81845358]
[1764328576077,5.0,140.32,140.31,9.89536543]
[1764328576491,5.0,140.32,140.31,10.58536543]
[1764328576684,5.0,140.32,140.31,0.69]
[1764328577384,5.0,140.32,140.31,17.71244119]
[1764328577697,5.0,140.32,140.28,3.95]
[1764328578000,5.0,140.32,140.31,9.89536543]
[1764328578509,4.28,140.32,140.31,10.58536543]
[1764328579175,4.28,140.32,140.31,0.69]
[1764328579368,4.28,140.32,140.26,16.308864]
[1764328579569,4.97,140.32,140.23,0.69]
[1764328579778,4.97,140.32,140.28,9.89536543]
[1764328580178,4.97,140.32,140.27,9.89536543]
[1764328580493,14.86536543,140.32,140.26,9.89536543]
[1764328580692,4.97,140.32,140.27,9.89536543]
[1764328581602,4.97,140.32,140.27,17.02438996]
[1764328581808,4.28,140.32,140.27,17.02435897]
[1764328581983,4.28,140.32,140.29,9.89536543]
[1764328582179,4.28,140.32,140.3,9.89536543]
[1764328582383,4.28,140.32,140.31,9.89536543]
[1764328582591,4.28,140.32,140.31,10.55536543]
[1764328582592,3.56,140.32,140.31,10.55536543]
[1764328583105,0.68,140.41,140.31,10.55536543]
[1764328583289,0.68,140.41,140.36,7.1245369]
[1764328583489,0.68,140.43,140.38,9.89536543]
[1764328584233,9.89536543,140.46,140.36,24.93587916]
[1764328584508,0.68,140.46,140.41,9.89536543]
[1764328585188,0.68,140.46,140.42,9.89536543]
[1764328585385,0.68,140.49,140.44,17.01584392]
[1764328585583,0.68,140.49,140.45,9.89536543]
[1764328586290,0.68,140.49,140.44,17.01584392]
[1764328586502,0.68,140.49,140.44,7.12047849]
[1764328586714,0.68,140.49,140.45,9.89536543]
[1764328587086,0.68,140.49,140.46,9.89536543]
[1764328587282,0.68,140.52,140.46,9.89536543]
[1764328587484,0.68,140.52,140.48,9.89536543]
[1764328587703,0.68,140.52,140.47,9.89536543]
[1764328587909,0.68,140.52,140.46,10.37931769]
[1764328588114,0.68,140.52,140.49,9.89536543]
[1764328588408,0.88,140.55,140.5,9.89536543]
[1764328588583,0.2,140.55,140.52,9.89536543]
[1764328588788,0.2,140.55,140.5,9.89536543]
[1764328588992,0.88,140.55,140.46,41.22684323]
[1764328589190,0.88,140.55,140.49,9.89536543]
[1764328589389,0.68,140.54,140.49,9.89536543]
[1764328589611,9.89536543,140.5,140.4,17.80592558]
[1764328589810,0.96432314,140.54,140.4,24.9284327]
[1764328589991,9.89536543,140.5,140.43,9.89536543]
[1764328590309,16.308864,140.52,140.43,9.89536543]
[1764328590498,9.89536543,140.51,140.44,9.89536543]
[1764328590694,9.89536543,140.48,140.41,13.15536543]
[1764328590894,16.59318714,140.52,140.33,1.99999999]
[1764328590895,9.89536543,140.45,140.33,1.99999999]
[1764328591103,9.89536543,140.42,140.34,3.26]
[1764328591305,9.89536543,140.44,140.37,9.89536543]
[1764328591510,9.89536543,140.44,140.35,3.26]
[1764328591511,9.89536543,140.44,140.38,17.01888729]
[1764328591708,0.68,140.45,140.39,9.89536543]
[1764328592109,0.68,140.45,140.36,9.89536543]
[1764328592424,9.89536543,140.43,140.36,3.26]
[1764328592937,9.89536543,140.43,140.36,9.89536543]
[1764328593098,9.89536543,140.4,140.34,10.38555223]
[1764328593607,10.57536543,140.42,140.34,38.09479823]
[1764328593810,9.89536543,140.4,140.34,24.9394328]
[1764328594015,9.09426806,140.47,140.34,24.9394328]
[1764328594016,0.68,140.41,140.34,24.9394328]
[1764328594209,10.57536543,140.41,140.34,34.83479823]
[1764328594617,0.68,140.45,140.37,8.52903122]
[1764328594924,9.20903122,140.45,140.37,8.52903122]
[1764328595328,8.52903122,140.44,140.37,8.52903122]
[1764328595628,8.52903122,140.41,140.35,24.93728609]
[1764328596091,25.11880892,140.49,140.37,8.52903122]
[1764328596295,0.68,140.44,140.36,8.52903122]
[1764328596516,9.20903122,140.44,140.36,8.52903122]
[1764328597099,9.20903122,140.46,140.38,8.52903122]
[1764328597323,0.68,140.46,140.39,3.26]
[1764328597623,7.11800563,140.49,140.38,16.308864]
[1764328597624,0.68,140.48,140.41,24.92699949]
[1764328597798,0.68,140.48,140.41,41.23586349]
[1764328598005,9.20903122,140.5,140.42,11.78903122]
[1764328598207,0.68,140.5,140.43,8.52903122]
[1764328598922,9.20903122,140.5,140.43,3.26]
[1764328599398,0.68,140.49,140.43,3.26]
[1764328599596,0.68,140.49,140.44,7.12047849]
[1764328599824,8.52903122,140.48,140.44,7.12047849]
[1764328600004,8.52903122,140.48,140.43,7.12091064]
[1764328600207,9.20903122,140.47,140.41,7.12199985]
[1764328600400,8.52903122,140.46,140.41,7.12199985]
[1764328600615,9.22903122,140.46,140.41,7.12199985]
[1764328600928,0.7,140.45,140.41,24.92699949]
[1764328601632,0.7,140.45,140.41,17.80499964]
[1764328602000,0.7,140.45,140.4,7.12250712]
[1764328602416,8.52903122,140.44,140.4,7.12250712]
[1764328602915,9.22903122,140.44,140.4,7.12250712]
[1764328603232,9.22903122,140.44,140.4,24.92877492]
[1764328603929,7.40221867,140.5,140.4,24.92877492]
[1764328604120,8.52903122,140.46,140.4,24.92877492]
[1764328604326,0.98432314,140.49,140.4,7.12250712]
[1764328604327,8.52903122,140.44,140.4,7.12250712]
[1764328604619,0.98432314,140.49,140.38,10.38318016]
[1764328604620,0.7,140.48,140.38,10.38318016]
[1764328604837,8.52903122,140.43,140.38,28.19198483]
[1764328605014,0.28432314,140.46,140.37,7.12402935]
[1764328605326,8.52903122,140.41,140.37,24.93410272]
[1764328605528,9.22903122,140.41,140.37,24.93410272]
[1764328605707,9.22903122,140.41,140.37,7.12402935]
[1764328606051,9.22903122,140.41,140.36,17.81040106]
[1764328606222,8.52903122,140.41,140.36,17.81040106]
[1764328606529,9.22903122,140.41,140.35,10.38504453]
[1764328606827,8.52903122,140.42,140.35,28.19765585]
[1764328607016,7.11984784,140.46,140.35,28.19765585]
[1764328607017,8.52903122,140.45,140.38,8.52903122]
[1764328607219,8.52903122,140.45,140.39,3.26]
[1764328607427,0.7,140.46,140.39,11.78903122]
[1764328607997,8.52903122,140.47,140.4,24.92877492]
[1764328608202,9.22903122,140.48,140.4,24.92877492]
[1764328608628,0.7,140.47,140.4,24.92877492]
[1764328608830,0.7,140.47,140.4,28.18877492]
[1764328608831,8.52903122,140.46,140.4,28.18877492]
[1764328609002,8.52903122,140.42,140.31,35.63437576]
[1764328609202,8.52903122,140.37,140.32,7.12656784]
[1764328609414,8.52903122,140.39,140.32,7.12656784]
[1764328609832,0.7,140.38,140.32,24.94298745]
[1764328610943,21.06046044,140.45,140.33,5.20272187]
[1764328610944,0.7,140.41,140.33,5.20272187]
[1764328611235,5.20272187,140.43,140.34,5.20272187]
[1764328611418,5.20272187,140.43,140.35,3.26]
[1764328611613,5.90272187,140.43,140.35,3.26]
[1764328612136,5.90272187,140.42,140.37,24.93410272]
[1764328612531,0.7,140.41,140.37,24.93410272]
[1764328613843,5.20272187,140.4,140.36,3.26]
[1764328614246,5.20272187,140.38,140.34,24.93822201]
[1764328614615,5.90272187,140.38,140.34,24.93822201]
[1764328615243,5.90272187,140.38,140.35,16.308864]
[1764328615547,0.7,140.37,140.35,16.308864]
[1764328616015,5.20272187,140.38,140.35,16.308864]
[1764328616215,5.90272187,140.38,140.35,16.308864]
[1764328616837,5.90272187,140.37,140.35,23.43375022]
[1764328617047,5.20272187,140.36,140.3,17.81853562]
[1764328617227,5.90272187,140.36,140.31,10.36707576]
[1764328617421,5.20272187,140.36,140.32,16.308864]
[1764328617627,7.12366655,140.38,140.29,3.24]
[1764328617628,5.20272187,140.34,140.29,3.24]
[1764328617838,5.20272187,140.34,140.3,16.308864]
[1764328618040,12.32568659,140.4,140.32,16.308864]
[1764328618240,0.7,140.38,140.32,3.24]
[1764328618441,5.90272187,140.38,140.34,16.308864]
[1764328618838,0.7,140.38,140.34,16.308864]
[1764328619234,5.90272187,140.38,140.34,16.308864]
[1764328619547,5.20272187,140.37,140.31,24.94476516]
[1764328619847,5.90272187,140.37,140.32,3.24]
[1764328620146,5.20272187,140.35,140.3,10.36721479]
[1764328620348,0.7,140.36,140.28,3.24]
[1764328620529,5.20272187,140.34,140.28,19.548864]
[1764328620723,5.20272187,140.33,140.28,3.24]
[1764328620924,0.7,140.34,140.23,8.80994492]
[1764328621124,0.7,140.34,140.16,0.1]
[1764328621125,0.28432314,140.31,140.16,0.1]
[1764328621347,5.20272187,140.23,140.16,0.1]
[1764328621550,5.20272187,140.23,140.17,3.24]
[1764328621725,0.7,140.22,140.16,0.1]
[1764328621924,5.20272187,140.21,140.16,0.1]
[1764328622148,0.7,140.24,140.17,5.20272187]
[1764328622450,0.7,140.26,140.16,7.2346576]
[1764328622647,5.20272187,140.24,140.16,7.2346576]
[1764328622823,5.20272187,140.24,140.17,5.20272187]
[1764328623028,5.90272187,140.23,140.17,3.26]
[1764328623349,0.7,140.27,140.19,5.20272187]
[1764328623533,5.90272187,140.27,140.2,5.20272187]
[1764328623729,5.90272187,140.27,140.21,5.20272187]
[1764328623923,5.20272187,140.26,140.2,5.20272187]
[1764328624131,5.20272187,140.26,140.19,16.308864]
[1764328624132,5.20272187,140.22,140.17,7.13386205]
[1764328624350,5.20272187,140.21,140.17,7.13386205]
[1764328624725,5.90272187,140.2,140.16,7.23462064]
[1764328624945,0.7,140.23,140.16,7.23462064]
[1764328625449,0.7,140.23,140.16,12.43734251]
[1764328625657,5.20272187,140.25,140.16,25.07137863]
[1764328625850,5.90272187,140.24,140.16,7.23462064]
[1764328626024,5.20272187,140.22,140.16,12.43742128]
[1764328626225,0.7,140.24,140.19,7.1331764]
[1764328626538,0.7,140.27,140.19,24.9661174]
[1764328626744,5.20272187,140.24,140.19,24.9661174]
[1764328627346,0.7,140.23,140.19,7.1331764]
[1764328627647,0.28432314,140.28,140.19,7.1331764]
[1764328627822,5.20272187,140.25,140.19,30.16883927]
[1764328628023,0.7,140.27,140.19,7.1331764]
[1764328628024,5.20272187,140.23,140.19,7.1331764]
[1764328628227,5.20272187,140.23,140.18,7.13353895]
[1764328628442,5.90272187,140.23,140.18,7.13353895]
[1764328628651,5.20272187,140.21,140.16,0.1]
[1764328628842,0.7,140.22,140.16,0.1]
[1764328629041,3.96,140.25,140.17,5.20272187]
[1764328629248,3.96,140.25,140.16,7.23462656]
[1764328629249,9.16272187,140.25,140.19,5.20272187]
[1764328629447,5.20272187,140.23,140.16,30.27410642]
[1764328629828,8.46272187,140.25,140.16,25.07138455]
[1764328630024,0.7,140.27,140.21,5.20272187]
[1764328630241,0.7,140.27,140.22,7.13165026]
[1764328630242,5.90272187,140.27,140.22,7.13165026]
[1764328630532,0.7,140.27,140.22,24.96077591]
[1764328630833,5.20272187,140.33,140.26,5.20272187]
[1764328631049,5.20272187,140.33,140.23,8.80994492]
[1764328631050,5.87272187,140.33,140.23,8.80994492]
[1764328631353,5.87272187,140.36,140.3,5.20272187]
[1764328631565,0.67,140.39,140.32,5.20272187]
[1764328631855,0.67,140.39,140.33,5.20272187]
[1764328632030,5.20272187,140.39,140.33,5.20272187]
[1764328632225,5.87272187,140.39,140.34,7.12555223]
[1764328632428,0.67,140.38,140.34,7.12555223]
[1764328632825,0.67,140.38,140.34,24.9394328]
[1764328633029,0.67,140.42,140.35,5.20272187]
[1764328633335,5.20272187,140.38,140.32,7.12610004]
[1764328633531,7.79153742,140.42,140.32,7.12610004]
[1764328633532,5.20272187,140.39,140.32,12.32882191]
[1764328633757,5.20272187,140.39,140.33,5.20272187]
[1764328634133,0.67,140.4,140.32,24.94251965]
[1764328634134,0.67,140.4,140.34,5.20272187]
[1764328634439,5.20272187,140.42,140.35,24.93765585]
[1764328634648,0.67,140.43,140.37,5.20272187]
[1764328634958,0.67,140.43,140.35,24.93765585]
[1764328634959,5.20272187,140.42,140.36,5.20272187]
[1764328635249,5.20272187,140.45,140.39,5.20272187]
[1764328635454,0.67,140.46,140.4,5.20272187]
[1764328636230,0.67,140.46,140.42,7.12149266]
[1764328636868,3.26,140.47,140.42,30.12794619]
[1764328637071,5.87272187,140.48,140.42,30.12794619]
[1764328637229,0.67,140.51,140.44,5.20272187]
[1764328637561,0.67,140.51,140.42,24.92522432]
[1764328637773,8.46272187,140.52,140.46,5.20272187]
[1764328638066,0.67,140.52,140.47,5.20272187]
[1764328638242,0.2,140.53,140.48,5.20272187]
[1764328638561,0.2,140.53,140.5,5.20272187]
[1764328638763,0.2,140.53,140.52,5.20272187]
[1764328639062,0.2,140.53,140.49,28.17280517]
[1764328639241,0.2,140.53,140.5,3.26]
[1764328639569,0.2,140.53,140.48,12.32105914]
[1764328639570,0.87,140.53,140.48,12.32105914]
[1764328639732,5.20272187,140.52,140.43,25.11880892]
[1764328639934,5.20272187,140.48,140.42,3.26]
[1764328640139,25.10572634,140.53,140.45,5.20272187]
[1764328640140,5.87272187,140.51,140.45,5.20272187]
[1764328640463,0.67,140.51,140.45,12.32263193]
[1764328640763,0.67,140.51,140.45,7.11991006]
[1764328640964,5.20272187,140.5,140.45,7.11991006]
[1764328641264,5.20272187,140.5,140.44,7.12035297]
[1764328641460,5.87272187,140.5,140.44,7.12035297]
[1764328641664,0.2,140.53,140.49,5.20272187]
[1764328642035,0.87,140.53,140.47,16.308864]
[1764328642342,0.87,140.53,140.48,12.32099352]
[1764328642838,0.67,140.52,140.46,12.32218648]
[1764328643236,0.67,140.52,140.48,5.20272187]
[1764328643442,0.67,140.52,140.47,5.20272187]
[1764328643638,0.67,140.52,140.46,24.91812615]
[1764328644139,0.67,140.52,140.47,5.20272187]
[1764328644458,0.67,140.52,140.48,5.20272187]
[1764328645255,0.67,140.52,140.49,5.20272187]
[1764328645571,0.2,140.53,140.46,24.91812615]
[1764328645859,0.2,140.53,140.49,5.20272187]
[1764328646241,0.87,140.53,140.49,5.20272187]
[1764328646445,0.87,140.53,140.46,28.17812615]
[1764328646762,0.87,140.53,140.49,5.20272187]
[1764328647160,0.2,140.53,140.49,5.20272187]
[1764328647369,0.67,140.52,140.49,5.20272187]
[1764328647672,5.87272187,140.52,140.46,12.32218648]
[1764328648151,0.67,140.51,140.44,17.80002208]
[1764328648353,0.67,140.51,140.32,5.20272187]
[1764328648354,5.20272187,140.45,140.32,5.20272187]
[1764328648673,5.20272187,140.48,140.36,5.20272187]
[1764328648674,0.14216157,140.46,140.36,5.20272187]
[1764328648976,0.67,140.47,140.4,5.20272187]
[1764328649275,5.20272187,140.44,140.38,5.20272187]
[1764328649772,0.67,140.43,140.38,5.20272187]
[1764328650077,0.67,140.43,140.4,5.20272187]
[1764328650569,0.67,140.43,140.4,7.12218231]
[1764328650751,0.67,140.43,140.4,12.32490418]
[1764328651375,10.37774175,140.5,140.41,5.20272187]
[1764328651579,5.20272187,140.48,140.42,5.20272187]
[1764328652066,0.67,140.47,140.43,5.20272187]
[1764328652266,0.67,140.47,140.4,24.92845011]
[1764328652465,0.67,140.47,140.42,5.20272187]
[1764328652683,0.67,140.47,140.43,7.12098554]
[1764328653171,0.67,140.47,140.43,12.32370741]
[1764328653348,0.67,140.49,140.45,5.20272187]
[1764328653671,0.67,140.49,140.43,24.9234494]
[1764328653672,0.67,140.48,140.47,5.20272187]
[1764328654251,0.67,140.48,140.45,5.20272187]
[1764328654454,0.67,140.48,140.43,7.12098554]
[1764328654669,0.67,140.48,140.46,5.20272187]
[1764328655249,3.26,140.5,140.47,5.20272187]
[1764328655551,0.67,140.48,140.44,5.20272187]
[1764328655766,0.67,140.48,140.41,7.12199985]
[1764328655953,0.67,140.48,140.44,5.20272187]
[1764328656159,0.67,140.48,140.45,5.20272187]
[1764328656576,0.67,140.48,140.46,9.04264416]
[1764328656884,0.67,140.48,140.47,9.04264416]
[1764328657253,0.67,140.48,140.46,7.11941345]
[1764328657458,0.67,140.48,140.47,9.04264416]
[1764328658173,3.93,140.5,140.47,9.04264416]
[1764328658390,0.67,140.49,140.47,9.04264416]
[1764328658602,0.67,140.49,140.37,35.61960638]
[1764328658603,0.81216157,140.49,140.37,35.61960638]
[1764328658766,16.97285504,140.49,140.44,9.04264416]
[1764328658971,7.93021088,140.49,140.44,9.04264416]
[1764328659172,0.67,140.48,140.44,9.04264416]
[1764328659483,0.67,140.48,140.45,9.04264416]
[1764328660584,3.97,140.5,140.47,9.04264416]
[1764328660759,0.71,140.5,140.49,9.04264416]
[1764328660959,3.44,140.53,140.49,9.04264416]
[1764328661177,0.71,140.52,140.5,9.04264416]
[1764328661483,0.71,140.52,140.49,9.04264416]
[1764328661667,0.71,140.52,140.5,9.04264416]
[1764328661861,0.71,140.52,140.49,9.04264416]
[1764328662369,0.71,140.52,140.48,9.04264416]
[1764328662572,0.71,140.52,140.49,9.04264416]
[1764328662774,7.8267363,140.52,140.48,9.04264416]
[1764328663172,0.71,140.51,140.47,9.04264416]
[1764328663569,0.71,140.51,140.48,9.04264416]
[1764328664086,0.71,140.51,140.5,9.04264416]
[1764328664701,0.71,140.51,140.49,9.04264416]
[1764328665691,0.71,140.51,140.5,9.04264416]
[1764328665986,0.71,140.51,140.44,24.92167473]
[1764328666162,0.71,140.51,140.44,7.12047849]
[1764328666361,0.28432314,140.5,140.45,9.04264416]
[1764328666769,0.71,140.49,140.47,9.04264416]
[1764328669188,0.71,140.49,140.41,35.60826643]
[1764328669189,0.71,140.49,140.43,16.308864]
[1764328669370,0.71,140.49,140.47,9.04264416]
[1764328670783,0.71,140.49,140.48,9.04264416]
[1764328670985,0.71,140.49,140.44,24.92167473]
[1764328671188,0.71,140.49,140.47,9.04264416]
[1764328676865,7.82797198,140.49,140.47,9.04264416]
[1764328677292,0.71,140.48,140.47,9.04264416]
[1764328679091,0.71,140.48,140.44,9.04264416]
[1764328679092,7.82860466,140.48,140.44,9.04264416]
[1764328679291,0.71,140.48,140.46,9.04264416]
[1764328679472,0.71,140.47,140.46,9.04264416]
[1764328679876,0.71,140.47,140.45,9.04264416]
[1764328680183,0.71,140.47,140.43,7.12096632]
[1764328680385,0.71,140.47,140.45,9.04264416]
[1764328680591,0.71,140.47,140.44,9.04264416]
[1764328680792,0.71,140.47,140.39,17.80710906]
[1764328680992,34.66924792,140.47,140.38,7.12352186]
[1764328681197,9.04264416,140.46,140.41,9.04264416]
[1764328681387,3.24,140.45,140.43,9.04264416]
[1764328681583,0.71,140.46,140.44,9.04264416]
[1764328681767,0.71,140.46,140.37,12.04994492]
[1764328681768,0.65974778,140.46,140.43,9.04264416]
[1764328682088,7.77931422,140.46,140.43,9.04264416]
[1764328682290,3.24,140.48,140.45,9.04264416]
[1764328683281,10.35845546,140.48,140.44,9.04264416]
[1764328683478,10.35845546,140.48,140.4,24.97877492]
[1764328683677,0.71,140.47,140.44,9.04264416]
[1764328684084,3.24,140.48,140.46,9.04264416]
[1764328684277,0.71,140.52,140.47,9.04264416]
[1764328684481,0.71,140.52,140.51,9.04264416]
[1764328684675,0.2,140.53,140.51,9.04264416]
[1764328684895,0.2,140.53,140.52,9.04264416]
[1764328685980,0.91,140.53,140.51,9.04264416]
[1764328686179,0.91,140.53,140.5,9.04264416]
[1764328686416,0.2,140.53,140.52,9.04264416]
[1764328688087,0.2,140.53,140.52,9.09264416]
[1764328688304,0.2,140.53,140.52,9.04264416]
[1764328688496,0.2,140.53,140.46,8.80994492]
[1764328688497,0.91,140.53,140.47,7.11891649]
[1764328688815,0.2,140.53,140.52,9.04264416]
[1764328689421,0.2,140.53,140.52,9.09264416]
[1764328689709,0.2,140.53,140.52,16.20906886]
[1764328690912,0.2,140.55,140.52,34.00013063]
[1764328691135,1e-08,140.55,140.54,9.04264416]
[1764328691611,1e-08,140.55,140.54,16.20805614]
[1764328692387,1e-08,140.55,140.54,19.37805614]
[1764328692589,1e-08,140.55,140.54,9.04264416]
[1764328693606,1e-08,140.55,140.54,16.15805614]
[1764328694183,1e-08,140.55,140.54,16.20805614]
[1764328694819,1e-08,140.55,140.54,7.11541198]
[1764328695017,0.67000001,140.55,140.54,9.04264416]
[1764328695222,1e-08,140.55,140.54,9.04264416]
[1764328695389,0.67000001,140.55,140.54,9.04264416]
[1764328696211,1e-08,140.55,140.54,9.04264416]
[1764328696984,1e-08,140.55,140.52,3.22]
[1764328697208,0.67000001,140.55,140.53,9.04264416]
[1764328697419,0.67000001,140.55,140.54,9.04264416]
[1764328697623,0.67000001,140.55,140.53,9.04264416]
[1764328697824,0.67000001,140.55,140.54,9.04264416]
[1764328699013,0.72000001,140.55,140.54,9.04264416]
[1764328700016,1e-08,140.55,140.54,9.04264416]
[1764328700791,1e-08,140.55,140.52,28.12743131]
[1764328700987,1e-08,140.55,140.54,9.04264416]
[1764328701917,1e-08,140.55,140.54,16.15805614]
[1764328704218,1e-08,140.55,140.54,16.20805614]
[1764328704998,1e-08,140.55,140.54,19.37805614]
[1764328705518,1e-08,140.55,140.54,19.42805614]
[1764328705897,1e-08,140.55,140.54,19.37805614]
[1764328706407,1e-08,140.55,140.54,19.42805614]
[1764328706590,1e-08,140.55,140.54,19.37805614]
[1764328707306,1e-08,140.55,140.54,10.38541198]
[1764328707612,1e-08,140.55,140.54,19.37805614]
[1764328708595,1e-08,140.55,140.54,16.15805614]
[1764328708823,1e-08,140.55,140.54,19.37805614]
[1764328709198,0.72000001,140.55,140.54,7.11541198]
[1764328709396,0.72000001,140.55,140.46,0.05]
[1764328709703,0.72000001,140.55,140.53,9.04264416]
[1764328710300,0.72000001,140.55,140.53,16.15843352]
[1764328710919,0.72000001,140.55,140.54,9.04264416]
[1764328712219,1e-08,140.55,140.54,16.15805614]
[1764328712798,1e-08,140.55,140.54,9.04264416]
[1764328713123,0.72000001,140.55,140.54,9.04264416]
[1764328713311,1e-08,140.55,140.54,9.04264416]
[1764328714311,1e-08,140.55,140.54,16.15805614]
[1764328714515,0.72000001,140.55,140.54,9.04264416]
[1764328714717,0.72000001,140.55,140.54,16.15805614]
[1764328715025,0.72000001,140.55,140.52,7.11608425]
[1764328715225,0.72000001,140.55,140.54,9.04264416]
[1764328716035,0.72000001,140.55,140.5,10.33743772]
[1764328716330,0.72000001,140.55,140.52,7.11605099]
[1764328716524,0.72000001,140.55,140.53,5.18896097]
[1764328717024,0.72000001,140.55,140.54,5.18896097]
[1764328717326,1e-08,140.55,140.54,5.18896097]
[1764328717528,0.72000001,140.55,140.53,5.18896097]
[1764328717909,0.72000001,140.55,140.54,5.18896097]
[1764328718232,0.72000001,140.55,140.5,3.22]
[1764328718526,0.72000001,140.55,140.53,5.18896097]
[1764328718728,7.83499305,140.55,140.52,5.18896097]
[1764328719024,0.72,140.54,140.53,5.18896097]
[1764328720733,0.72,140.54,140.53,12.30487927]
[1764328720942,0.72,140.54,140.53,5.18896097]
[1764328721129,0.72,140.54,140.49,7.11794433]
[1764328721323,0.72,140.54,140.52,5.18896097]
[1764328721623,0.72,140.54,140.51,5.18896097]
[1764328722328,0.72,140.54,140.52,5.18896097]
[1764328722717,0.72,140.54,140.52,7.11628671]
[1764328723101,0.72,140.54,140.48,3.22]
[1764328723303,0.72,140.54,140.52,5.18896097]
[1764328723706,0.72,140.54,140.49,24.91280517]
[1764328724028,0.72,140.54,140.52,5.18896097]
[1764328724431,7.83554984,140.54,140.52,5.18896097]
[1764328724827,0.72,140.53,140.52,5.18896097]
[1764328725027,0.72,140.53,140.51,5.18896097]
[1764328725419,0.72,140.53,140.52,5.18896097]
[1764328726014,0.72,140.53,140.51,5.18896097]
[1764328727334,5.18896097,140.52,140.47,5.18896097]
[1764328727639,7.83598608,140.53,140.47,5.18896097]
[1764328727934,0.72,140.52,140.47,5.18896097]
[1764328728332,0.72,140.52,140.48,5.18896097]
[1764328728528,0.72,140.52,140.48,2.18072433]
[1764328728928,0.72,140.52,140.49,9.29866866]
[1764328730427,0.72,140.52,140.5,2.18072433]
[1764328730917,6.83594046,140.53,140.49,2.18072433]